[Event "Tournoi norme de MI"]
[Site "PARIS"]
[Date "????.??.??"]
[Round "1.1"]
[White "Navrotescu, Andreea"]
[Black "Lazo, Andrei"]
[Result "1-0"]
[TimeControl "90mn+30s/c"]
[WhiteElo "2228"]
[BlackElo "2212"]

1. e4 {[%emt 00:00:11]} e6 {[%emt 00:00:06]} 2. d4 d5 {[%emt 00:00:01]} 3. e5
{[%emt 00:00:04]} c5 {[%emt 00:00:02]} 4. c3 {[%emt 00:00:08]} Qb6 {[%emt
00:00:01]} 5. Nf3 {[%emt 00:00:03]} Nc6 {[%emt 00:00:05]} 6. Be2 {[%emt
00:00:09]} cxd4 {[%emt 00:00:16]} 7. cxd4 {[%emt 00:00:02]} Nge7 {[%emt
00:00:15]} 8. Na3 {[%emt 00:00:07]} Nf5 {[%emt 00:00:05]} 9. Nc2 {[%emt
00:00:01]} Bb4+ {[%emt 00:00:18]} 10. Bd2 {[%emt 00:01:04]} Bxd2+ {[%emt
00:00:11]} 11. Qxd2 {[%emt 00:00:02]} Qxb2 {[%emt 00:00:19]} 12. O-O {[%emt
00:01:25]} Qb6 {[%emt 00:00:22]} 13. Rab1 {[%emt 00:00:01]} Qa5 {[%emt
00:00:02]} 14. Qf4 {[%emt 00:00:09]} Qxa2 {[%emt 00:00:09]} 15. Bd3 {[%emt
00:00:01]} Qa5 {[%emt 00:00:46]} 16. g4 {[%emt 00:00:04]} Nfe7 {[%emt
00:00:02]} 17. Ng5 {[%emt 00:00:05]} Nd8 {[%emt 00:00:56]} 18. Nxh7 {[%emt
00:00:10]} Qc3 {[%emt 00:00:39]} 19. Qe3 {[%emt 00:00:07]} Qc7 {[%emt
00:00:08]} 20. h4 {[%emt 00:00:07]} Ng6 {[%emt 00:00:04]} 21. h5 {[%emt
00:00:03]} Rxh7 {[%emt 00:00:58]} 22. hxg6 {[%emt 00:00:03]} Rh4 {[%emt
00:00:12]} 23. Qg3 {[%emt 00:00:02]} Qe7 {[%emt 00:00:07]} 24. Kg2 {[%emt
00:00:19]} a5 {[%emt 00:00:05]} 25. Rh1 {[%emt 00:00:10]} Rxh1 {[%emt
00:00:02]} 26. Rxh1 {[%emt 00:00:04]} a4 {[%emt 00:00:28]} 27. Bb5+ {[%emt
00:00:05]} Nc6 {[%emt 00:01:37]} 28. Qc3 {[%emt 00:00:08]} Qc7 {[%emt
00:00:08]} 29. Rh8+ {[%emt 00:00:02]} 1-0

[Event "Tournoi norme de MI"]
[Site "PARIS"]
[Date "????.??.??"]
[Round "1.2"]
[White "Bassini, Emile"]
[Black "Duboue, Peio"]
[Result "1/2-1/2"]
[TimeControl "90mn+30s/c"]
[WhiteElo "2382"]
[BlackElo "2462"]

1. e4 {[%emt 00:32:16]} e5 2. Nf3 Nc6 3. Bb5 g6 4. d4 exd4 {[%emt 00:00:02]} 5.
c3 {[%emt 00:00:06]} dxc3 {[%emt 00:00:07]} 6. Nxc3 {[%emt 00:00:06]} h6 7. O-O
{[%emt 00:00:04]} Bg7 8. Bd2 {[%emt 00:00:01]} d6 {[%emt 00:00:03]} 9. Qc1
{[%emt 00:00:01]} Nf6 {[%emt 00:00:03]} 10. Nd5 {[%emt 00:01:06]} O-O {[%emt
00:00:02]} 11. Bxh6 {[%emt 00:00:05]} Nxe4 12. Bxg7 Kxg7 13. Bxc6 {[%emt
00:00:01]} bxc6 {[%emt 00:00:01]} 14. Qxc6 {[%emt 00:00:04]} Rb8 {[%emt
00:00:01]} 15. Qc4 {[%emt 00:00:06]} Nf6 16. Nxf6 {[%emt 00:02:26]} Qxf6 17.
Qxc7 {[%emt 00:00:05]} Bb7 {[%emt 00:00:01]} 18. Rad1 {[%emt 00:00:08]} Bxf3
{[%emt 00:00:08]} 19. Rxd6 {[%emt 00:00:25]} Qxb2 {[%emt 00:00:23]} 20. gxf3
{[%emt 00:00:02]} Rb7 {[%emt 00:00:26]} 21. Qc4 {[%emt 00:00:08]} Rb4 {[%emt
00:00:01]} 22. Qc1 {[%emt 00:00:06]} Qe5 {[%emt 00:00:03]} 23. Qa1 {[%emt
00:00:01]} Qxa1 {[%emt 00:02:06]} 24. Rxa1 {[%emt 00:00:04]} Ra4 25. Rd2 {[%emt
00:02:07]} Rh8 {[%emt 00:00:03]} 26. Rb1 Rh5 {[%emt 00:00:02]} 27. Rb7 a5
{[%emt 00:00:16]} 28. Rbd7 Rg5+ {[%emt 00:00:24]} 29. Kf1 Rh5 {[%emt 00:00:23]}
30. R7d4 {[%emt 00:00:03]} Rxd4 {[%emt 00:00:50]} 31. Rxd4 {[%emt 00:00:01]}
Rxh2 {[%emt 00:00:01]} 32. Ke2 {[%emt 00:00:02]} Rh5 33. f4 {[%emt 00:00:02]}
Rc5 {[%emt 00:00:04]} 34. a4 Rc2+ 35. Kf3 {[%emt 00:00:03]} Ra2 {[%emt
00:00:01]} 36. Kg3 Ra3+ {[%emt 00:00:03]} 37. f3 {[%emt 00:00:01]} Kf6 {[%emt
00:00:02]} 38. Re4 Ra1 39. Kf2 {[%emt 00:00:04]} Kg7 40. Kg3 {[%emt 00:00:02]}
Ra2 {[%emt 00:00:02]} 41. Kh3 {[%emt 00:00:02]} Ra3 {[%emt 00:00:02]} 42. Kg3
{[%emt 00:00:01]} Kf8 43. Kf2 {[%emt 00:00:01]} Ra2+ 44. Kg3 {[%emt 00:00:01]}
Ra1 45. Kf2 f5 46. Rd4 {[%emt 00:00:01]} Ke7 47. Ke2 Ke6 48. Ke3 Ra2 {[%emt
00:00:01]} 49. Kd3 {[%emt 00:00:16]} Ra3+ {[%emt 00:00:03]} 50. Ke2 {[%emt
00:00:03]} Ra2+ 51. Ke3 {[%emt 00:00:03]} Kf6 {[%emt 00:00:05]} 52. Rd6+ Kg7
{[%emt 00:00:01]} 53. Rd7+ {[%emt 00:00:01]} Kh6 {[%emt 00:00:01]} 54. Rd4
{[%emt 00:00:01]} Kh5 {[%emt 00:01:46]} 55. Rd1 Kh6 {[%emt 00:00:02]} 56. Rd4
g5 {[%emt 00:00:02]} 57. Rd6+ Kh5 {[%emt 00:00:01]} 58. Rd5 Rxa4 {[%emt
00:00:02]} 59. Rxf5 {[%emt 00:00:01]} Rxf4 {[%emt 00:00:02]} 60. Rxa5 1/2-1/2

[Event "Tournoi norme de MI"]
[Site "PARIS"]
[Date "????.??.??"]
[Round "1.4"]
[White "Willems, Niels"]
[Black "Laurent, Julien G."]
[Result "1-0"]
[TimeControl "90mn+30s/c"]
[WhiteElo "2337"]
[BlackElo "2199"]

1. e4 {[%emt 00:15:10]} c5 {[%emt 00:00:05]} 2. Nf3 {[%emt 00:00:04]} d6 {[%emt
00:00:03]} 3. Bb5+ {[%emt 00:00:01]} Nc6 {[%emt 00:00:03]} 4. O-O {[%emt
00:00:03]} Bd7 {[%emt 00:00:03]} 5. Re1 {[%emt 00:00:02]} a6 {[%emt 00:00:03]}
6. Bf1 {[%emt 00:00:03]} g6 {[%emt 00:00:07]} 7. c3 {[%emt 00:00:05]} Bg7 8. h3
{[%emt 00:00:08]} e5 {[%emt 00:00:05]} 9. b3 {[%emt 00:00:03]} Nge7 {[%emt
00:00:12]} 10. Bb2 {[%emt 00:00:03]} O-O {[%emt 00:00:05]} 11. d4 {[%emt
00:00:04]} Qc7 {[%emt 00:00:04]} 12. Na3 {[%emt 00:00:03]} cxd4 {[%emt
00:00:04]} 13. cxd4 {[%emt 00:00:02]} exd4 {[%emt 00:00:20]} 14. Nxd4 {[%emt
00:00:03]} Nxd4 15. Bxd4 {[%emt 00:02:34]} Bxd4 {[%emt 00:00:03]} 16. Qxd4
{[%emt 00:00:02]} Nc6 {[%emt 00:00:37]} 17. Qf6 {[%emt 00:00:03]} Be6 {[%emt
00:00:03]} 18. Nc2 {[%emt 00:00:03]} Qe7 {[%emt 00:00:02]} 19. Qf4 {[%emt
00:00:03]} Rad8 {[%emt 00:00:04]} 20. Ne3 {[%emt 00:00:04]} Kg7 {[%emt
00:00:03]} 21. Rad1 {[%emt 00:00:05]} Ne5 {[%emt 00:00:04]} 22. Qg3 {[%emt
00:00:03]} f6 {[%emt 00:00:02]} 23. f4 {[%emt 00:00:03]} Nf7 {[%emt 00:00:03]}
24. Bc4 {[%emt 00:00:03]} Qd7 {[%emt 00:00:16]} 25. Bd5 {[%emt 00:00:11]} Rfe8
{[%emt 00:00:04]} 26. Kh2 {[%emt 00:00:03]} Rc8 {[%emt 00:00:03]} 27. Qf2
{[%emt 00:00:03]} Nh6 {[%emt 00:00:03]} 28. Nc4 {[%emt 00:00:02]} Rcd8 {[%emt
00:00:03]} 29. Qb6 {[%emt 00:00:05]} Bxd5 {[%emt 00:00:07]} 30. Rxd5 {[%emt
00:00:05]} Nf7 {[%emt 00:00:04]} 31. Red1 {[%emt 00:00:03]} Qc6 {[%emt
00:00:03]} 32. Qd4 {[%emt 00:00:03]} b5 {[%emt 00:00:03]} 33. Ne3 {[%emt
00:00:03]} Rc8 {[%emt 00:00:03]} 34. Ng4 {[%emt 00:00:03]} Qc3 {[%emt
00:00:02]} 35. Nxf6 {[%emt 00:00:04]} Re6 {[%emt 00:00:05]} 36. Ne8+ {[%emt
00:00:03]} Kf8 {[%emt 00:00:03]} 37. Nxd6 {[%emt 00:00:02]} 1-0

[Event "Tournoi norme de MI"]
[Site "PARIS"]
[Date "????.??.??"]
[Round "1.5"]
[White "Bonte, Andrei-Mihai"]
[Black "Roshka, Yevgeniy"]
[Result "0-1"]
[TimeControl "90mn+30s/c"]
[WhiteElo "2340"]
[BlackElo "2501"]

1. d4 {[%emt 00:00:19]} Nf6 {[%emt 00:00:12]} 2. c4 {[%emt 00:00:04]} c5 {[%emt
00:00:03]} 3. d5 {[%emt 00:00:07]} e6 {[%emt 00:00:01]} 4. Nc3 {[%emt
00:00:05]} exd5 {[%emt 00:00:05]} 5. cxd5 {[%emt 00:00:17]} d6 {[%emt
00:00:09]} 6. Nf3 {[%emt 00:00:04]} g6 {[%emt 00:00:02]} 7. Bg5 {[%emt
00:00:04]} Bg7 {[%emt 00:00:01]} 8. e3 {[%emt 00:00:07]} h6 {[%emt 00:00:03]} 9.
Bh4 {[%emt 00:00:08]} O-O {[%emt 00:00:06]} 10. Nd2 {[%emt 00:00:05]} Na6
{[%emt 00:00:04]} 11. Be2 {[%emt 00:00:12]} Nc7 {[%emt 00:00:08]} 12. O-O
{[%emt 00:00:07]} Rb8 {[%emt 00:00:07]} 13. a4 {[%emt 00:00:01]} b6 {[%emt
00:00:07]} 14. Nc4 {[%emt 00:00:07]} Ba6 {[%emt 00:00:45]} 15. h3 {[%emt
00:00:05]} Qd7 {[%emt 00:00:10]} 16. Rb1 {[%emt 00:00:09]} Bxc4 {[%emt
00:00:18]} 17. Bxc4 {[%emt 00:00:02]} a6 {[%emt 00:00:06]} 18. Qf3 {[%emt
00:00:03]} Nh7 {[%emt 00:00:07]} 19. Qg4 {[%emt 00:00:09]} Qe8 {[%emt
00:00:09]} 20. Ne4 {[%emt 00:00:39]} f5 {[%emt 00:00:09]} 21. Nxd6 {[%emt
00:00:06]} fxg4 {[%emt 00:00:10]} 22. Nxe8 {[%emt 00:00:11]} Nxe8 {[%emt
00:00:01]} 23. Bxa6 {[%emt 00:01:53]} Be5 {[%emt 00:00:07]} 24. hxg4 {[%emt
00:00:57]} g5 {[%emt 00:00:05]} 25. f4 {[%emt 00:00:19]} gxf4 {[%emt 00:00:02]}
26. exf4 {[%emt 00:00:02]} Rxf4 {[%emt 00:00:38]} 27. Rxf4 {[%emt 00:00:03]}
Bxf4 {[%emt 00:00:03]} 28. b4 {[%emt 00:00:05]} cxb4 {[%emt 00:00:08]} 29. Rxb4
{[%emt 00:00:04]} Bd6 {[%emt 00:00:06]} 30. Rb1 {[%emt 00:00:04]} Nhf6 {[%emt
00:00:09]} 31. g5 {[%emt 00:00:04]} hxg5 32. Bxg5 {[%emt 00:00:03]} Bc5+ {[%emt
00:04:22]} 33. Kh2 Kg7 {[%emt 00:00:19]} 34. g3 {[%emt 00:00:03]} Nc7 {[%emt
00:00:04]} 35. Bc4 {[%emt 00:00:05]} Nfxd5 {[%emt 00:00:07]} 36. Rd1 {[%emt
00:00:06]} Kg6 {[%emt 00:00:06]} 37. Bc1 {[%emt 00:00:04]} Nf6 {[%emt
00:00:07]} 38. Bf4 {[%emt 00:00:06]} Ng4+ {[%emt 00:00:06]} 39. Kg2 {[%emt
00:00:04]} Ne3+ {[%emt 00:00:07]} 40. Bxe3 {[%emt 00:00:03]} Bxe3 {[%emt
00:00:02]} 41. Rd6+ {[%emt 00:00:05]} Kg5 {[%emt 00:00:03]} 42. Rd7 {[%emt
00:00:04]} Rc8 {[%emt 00:00:04]} 43. Kf3 {[%emt 00:00:02]} Bc5 {[%emt
00:00:03]} 44. Ke4 {[%emt 00:00:05]} Re8+ {[%emt 00:00:03]} 45. Kf3 {[%emt
00:00:04]} Re7 {[%emt 00:00:10]} 46. Rd3 {[%emt 00:00:03]} Kf6 {[%emt
00:00:04]} 47. Bb3 {[%emt 00:00:09]} Ne6 {[%emt 00:00:07]} 48. Bd5 {[%emt
00:00:04]} Nd4+ {[%emt 00:00:05]} 49. Kf4 {[%emt 00:00:04]} Bd6+ {[%emt
00:00:03]} 50. Kg4 {[%emt 00:00:02]} Nf5 {[%emt 00:00:04]} 51. Kf3 {[%emt
00:00:13]} Rg7 {[%emt 00:00:02]} 52. g4 {[%emt 00:00:02]} Nh4+ {[%emt
00:00:07]} 53. Ke2 {[%emt 00:00:04]} Bc5 {[%emt 00:00:03]} 0-1



[ePGN "0.1;DGT LiveChess/2.2.5"]

[Event "Tournoi norme de MI"]
[Site "PARIS"]
[Date "????.??.??"]
[Round "2.3"]
[White "Navrotescu, Andreea"]
[Black "Bassini, Emile"]
[Result "1/2-1/2"]
[TimeControl "90mn+30s/c"]
[WhiteElo "2228"]
[BlackElo "2382"]

1. c4 {[%clk 01:29:25]} {[%emt 00:01:34]} Nf6 {[%clk 01:30:53]} {[%emt
00:00:07]} 2. Nc3 {[%clk 01:29:52]} {[%emt 00:00:04]} g6 {[%clk 01:31:18]}
{[%emt 00:00:05]} 3. e4 {[%clk 01:29:16]} {[%emt 00:01:06]} d6 {[%clk
01:31:42]} {[%emt 00:00:06]} 4. d4 {[%clk 01:29:41]} {[%emt 00:00:06]} Bg7
{[%clk 01:32:08]} {[%emt 00:00:02]} 5. Nf3 {[%clk 01:29:58]} {[%emt 00:00:13]}
O-O {[%clk 01:32:32]} {[%emt 00:00:06]} 6. h3 {[%clk 01:30:19]} {[%emt
00:00:09]} e5 {[%clk 01:32:17]} {[%emt 00:00:44]} 7. d5 {[%clk 01:30:39]}
{[%emt 00:00:10]} a5 {[%clk 01:32:07]} {[%emt 00:00:40]} 8. Be3 {[%clk
01:30:37]} {[%emt 00:00:32]} Na6 {[%clk 01:32:32]} {[%emt 00:00:06]} 9. g4
{[%clk 01:30:01]} {[%emt 00:01:05]} Nd7 {[%clk 01:32:55]} {[%emt 00:00:09]} 10.
h4 {[%emt 00:11:42]} f5 {[%clk 01:27:05]} 11. gxf5 {[%clk 01:24:41]} {[%emt
00:00:55]} gxf5 {[%clk 01:27:30]} {[%emt 00:00:05]} 12. Ng5 {[%clk 01:23:37]}
{[%emt 00:01:34]} f4 {[%clk 01:20:13]} {[%emt 00:07:47]} 13. Ne6 {[%clk
01:16:56]} {[%emt 00:07:11]} Qf6 {[%clk 01:20:40]} {[%emt 00:00:03]} 14. Bd2
{[%clk 01:16:17]} {[%emt 00:01:08]} Rf7 {[%clk 01:20:49]} {[%emt 00:00:21]} 15.
Bh3 {[%clk 00:56:37]} {[%emt 00:20:10]} Ndc5 {[%clk 01:18:10]} {[%emt
00:03:09]} 16. Nxc5 {[%clk 00:56:46]} {[%emt 00:00:21]} Nxc5 {[%clk 01:18:35]}
{[%emt 00:00:05]} 17. Bxc8 {[%clk 00:56:46]} {[%emt 00:00:30]} Rxc8 {[%clk
01:19:03]} {[%emt 00:00:02]} 18. Qf3 {[%clk 00:56:32]} {[%emt 00:00:44]} Kh8
{[%clk 01:17:33]} {[%emt 00:02:00]} 19. O-O-O {[%clk 00:56:15]} {[%emt
00:00:47]} Rg8 {[%clk 01:16:47]} {[%emt 00:01:16]} 20. Rdg1 {[%clk 00:56:00]}
{[%emt 00:00:46]} Bf8 {[%clk 01:13:52]} {[%emt 00:03:24]} 21. Rxg8+ {[%clk
00:46:29]} {[%emt 00:10:02]} Kxg8 {[%clk 01:14:21]} {[%emt 00:00:02]} 22. Rg1+
{[%clk 00:46:45]} {[%emt 00:00:13]} Rg7 {[%clk 01:14:23]} {[%emt 00:00:27]} 23.
Rxg7+ {[%clk 00:47:05]} {[%emt 00:00:10]} Kxg7 {[%clk 01:07:56]} {[%emt
00:06:58]} 24. h5 {[%clk 00:39:37]} {[%emt 00:07:56]} Qh4 {[%clk 01:05:09]}
{[%emt 00:03:17]} 25. Kc2 {[%clk 00:27:00]} {[%emt 00:13:07]} Kh6 {[%clk
01:03:16]} {[%emt 00:02:22]} 26. Qg2 {[%clk 00:19:30]} {[%emt 00:08:00]} Qxh5
{[%clk 00:55:52]} {[%emt 00:07:55]} 27. f3 {[%clk 00:19:33]} {[%emt 00:00:27]}
Qg5 {[%clk 00:31:34]} {[%emt 00:24:48]} 28. Qh3+ {[%clk 00:19:50]} {[%emt
00:00:13]} Kg7 {[%clk 00:32:00]} {[%emt 00:00:04]} 29. Nb5 {[%clk 00:17:21]}
{[%emt 00:03:00]} Qg3 {[%clk 00:29:29]} {[%emt 00:03:00]} 30. Qh5 {[%clk
00:15:07]} {[%emt 00:02:44]} c6 {[%clk 00:20:57]} {[%emt 00:09:03]} 31. Nc7
{[%clk 00:15:35]} {[%emt 00:00:02]} Qg6 {[%clk 00:20:32]} {[%emt 00:00:55]} 32.
Qh3 {[%clk 00:16:04]} {[%emt 00:00:01]} Qg3 {[%clk 00:17:54]} {[%emt 00:03:08]}
33. Qh5 {[%clk 00:15:56]} {[%emt 00:00:38]} Qg6 {[%clk 00:17:48]} {[%emt
00:00:35]} 34. Qh3 {[%clk 00:16:24]} {[%emt 00:00:02]} 1/2-1/2

[Event "Tournoi norme de MI"]
[Site "PARIS"]
[Date "????.??.??"]
[Round "2.2"]
[White "Lazo, Andrei"]
[Black "Mouhamad, Joachim"]
[Result "1/2-1/2"]
[TimeControl "90mn+30s/c"]
[WhiteElo "2212"]
[BlackElo "2301"]

1. d4 {[%clk 01:30:58]} {[%emt 00:00:02]} d5 {[%clk 01:30:24]} {[%emt
00:00:36]} 2. c4 {[%clk 01:31:22]} {[%emt 00:00:06]} e6 {[%clk 01:30:47]}
{[%emt 00:00:07]} 3. Nc3 {[%clk 01:31:47]} {[%emt 00:00:06]} a6 {[%clk
01:31:11]} {[%emt 00:00:07]} 4. cxd5 {[%clk 01:32:02]} {[%emt 00:00:14]} exd5
{[%clk 01:31:38]} {[%emt 00:00:03]} 5. Qc2 {[%clk 01:32:05]} {[%emt 00:00:27]}
Nf6 {[%clk 01:30:11]} {[%emt 00:01:59]} 6. Bg5 {[%clk 01:32:18]} {[%emt
00:00:15]} c6 {[%clk 01:30:26]} {[%emt 00:00:15]} 7. e3 {[%clk 01:32:43]}
{[%emt 00:00:05]} Be6 {[%clk 01:27:56]} {[%emt 00:03:02]} 8. Bd3 {[%clk
01:33:05]} {[%emt 00:00:07]} Be7 {[%clk 01:25:07]} {[%emt 00:03:18]} 9. Nge2
{[%clk 01:33:06]} {[%emt 00:00:28]} Nbd7 {[%clk 01:24:14]} {[%emt 00:01:26]} 10.
O-O {[%clk 01:27:32]} {[%emt 00:06:03]} Rc8 {[%clk 01:15:45]} {[%emt 00:09:00]}
11. Rad1 {[%clk 01:26:42]} {[%emt 00:01:18]} h6 {[%clk 01:09:23]} {[%emt
00:06:52]} 12. Bh4 {[%clk 01:26:35]} {[%emt 00:00:38]} Nh5 {[%clk 01:09:24]}
{[%emt 00:00:29]} 13. Bxe7 {[%clk 01:25:24]} {[%emt 00:01:42]} Qxe7 {[%clk
01:09:51]} {[%emt 00:00:01]} 14. f4 {[%clk 01:17:41]} {[%emt 00:08:14]} Ndf6
{[%clk 00:36:41]} {[%emt 00:33:40]} 15. h3 {[%clk 01:09:47]} {[%emt 00:08:25]}
O-O {[%clk 00:35:41]} {[%emt 00:01:29]} 16. Rf3 {[%clk 01:08:05]} {[%emt
00:02:12]} Ne8 {[%clk 00:34:00]} {[%emt 00:02:13]} 17. g4 {[%clk 00:54:29]}
{[%emt 00:14:04]} Nhf6 {[%clk 00:34:20]} {[%emt 00:00:11]} 18. Kg2 {[%clk
00:54:20]} {[%emt 00:00:39]} Nd6 {[%clk 00:33:36]} {[%emt 00:01:14]} 19. Rg3
{[%clk 00:43:13]} {[%emt 00:11:37]} Nfe4 {[%clk 00:31:48]} {[%emt 00:02:19]} 20.
Bxe4 {[%clk 00:42:51]} {[%emt 00:00:52]} dxe4 {[%clk 00:31:55]} {[%emt
00:00:23]} 21. f5 {[%clk 00:40:06]} {[%emt 00:03:14]} Bc4 {[%clk 00:29:21]}
{[%emt 00:03:04]} 22. Nf4 {[%clk 00:40:20]} {[%emt 00:00:16]} b5 {[%clk
00:21:30]} {[%emt 00:08:21]} 23. b3 {[%clk 00:39:28]} {[%emt 00:01:22]} Bd3
{[%clk 00:21:58]} {[%emt 00:00:02]} 24. Nxd3 {[%clk 00:37:12]} {[%emt
00:02:46]} exd3 {[%clk 00:22:26]} {[%emt 00:00:02]} 25. Qxd3 {[%clk 00:37:40]}
{[%emt 00:00:02]} b4 {[%clk 00:17:41]} {[%emt 00:05:15]} 26. Na4 {[%clk
00:37:26]} {[%emt 00:00:44]} Ne4 {[%clk 00:18:04]} {[%emt 00:00:07]} 27. Rf3
{[%clk 00:37:41]} {[%emt 00:00:15]} Rfe8 {[%clk 00:15:50]} {[%emt 00:02:44]} 28.
Re1 {[%clk 00:34:23]} {[%emt 00:03:47]} h5 {[%clk 00:15:39]} {[%emt 00:00:42]}
29. gxh5 {[%clk 00:27:07]} {[%emt 00:07:45]} Qh4 {[%clk 00:13:35]} {[%emt
00:02:34]} 30. Qe2 {[%clk 00:22:08]} {[%emt 00:05:29]} Rcd8 {[%clk 00:13:00]}
{[%emt 00:01:05]} 31. Nc5 {[%clk 00:17:07]} {[%emt 00:05:31]} Ng5 {[%clk
00:04:18]} {[%emt 00:09:12]} 32. Rg3 {[%clk 00:17:28]} {[%emt 00:00:08]} Rxd4
{[%clk 00:04:34]} {[%emt 00:00:14]} 33. exd4 {[%clk 00:12:09]} {[%emt
00:05:49]} Rxe2+ {[%clk 00:05:02]} {[%emt 00:00:02]} 34. Rxe2 {[%clk 00:12:38]}
Qxh5 {[%clk 00:00:34]} {[%emt 00:04:58]} 35. Ree3 {[%clk 00:08:49]} {[%emt
00:04:19]} Kh7 {[%clk 00:00:44]} {[%emt 00:00:21]} 36. Rg4 {[%clk 00:08:29]}
{[%emt 00:00:50]} f6 {[%clk 00:00:42]} {[%emt 00:00:32]} 37. Ne6 {[%clk
00:07:50]} {[%emt 00:01:08]} Kg8 {[%clk 00:00:37]} {[%emt 00:00:35]} 38. Nxg5
{[%clk 00:07:46]} {[%emt 00:00:34]} fxg5 {[%clk 00:01:00]} {[%emt 00:00:07]} 39.
Re6 {[%clk 00:07:33]} {[%emt 00:00:42]} Qf7 {[%clk 00:00:39]} {[%emt 00:00:51]}
40. Rxg5 {[%clk 00:07:30]} {[%emt 00:00:33]} Qd7 {[%clk 00:00:59]} {[%emt
00:00:10]} 41. Re4 {[%clk 00:06:07]} {[%emt 00:01:53]} Qd5 {[%clk 00:00:59]}
{[%emt 00:00:31]} 42. Kf3 {[%clk 00:06:31]} {[%emt 00:00:06]} Kf7 {[%clk
00:01:00]} {[%emt 00:00:29]} 43. h4 {[%clk 00:06:46]} {[%emt 00:00:15]} Qb5
{[%clk 00:01:19]} {[%emt 00:00:11]} 44. Re7+ {[%clk 00:04:28]} {[%emt
00:02:48]} Kf6 {[%clk 00:00:49]} {[%emt 00:01:00]} 45. Re6+ {[%clk 00:03:39]}
{[%emt 00:01:19]} Kf7 {[%clk 00:01:13]} {[%emt 00:00:06]} 46. Re7+ {[%clk
00:04:05]} {[%emt 00:00:03]} Kf6 {[%clk 00:01:35]} {[%emt 00:00:08]} 47. Rexg7
{[%clk 00:04:23]} {[%emt 00:00:13]} Qf1+ {[%clk 00:01:32]} {[%emt 00:00:34]} 48.
Ke3 {[%clk 00:04:19]} {[%emt 00:00:33]} Qe1+ {[%clk 00:01:27]} {[%emt
00:00:35]} 49. Kd3 {[%clk 00:04:05]} {[%emt 00:00:45]} Qf1+ {[%clk 00:01:24]}
{[%emt 00:00:33]} 50. Ke3 {[%clk 00:03:54]} {[%emt 00:00:41]} Qe1+ {[%clk
00:01:49]} {[%emt 00:00:05]} 51. Kf3 {[%clk 00:04:14]} {[%emt 00:00:10]} Qf1+
{[%clk 00:02:10]} {[%emt 00:00:09]} 52. Kg4 {[%clk 00:04:04]} {[%emt 00:00:39]}
Qd1+ {[%clk 00:02:29]} {[%emt 00:00:11]} 53. Kh3 {[%clk 00:03:14]} {[%emt
00:01:20]} Qh1+ {[%clk 00:02:52]} {[%emt 00:00:07]} 54. Kg3 {[%clk 00:03:22]}
{[%emt 00:00:23]} Qg1+ {[%clk 00:03:14]} {[%emt 00:00:08]} 55. Kf3 {[%clk
00:02:57]} {[%emt 00:00:55]} Qf1+ {[%clk 00:03:34]} {[%emt 00:00:09]} 56. Ke4
{[%clk 00:03:04]} {[%emt 00:00:22]} Qe2+ {[%clk 00:02:56]} {[%emt 00:01:09]} 57.
Kf4 {[%clk 00:03:19]} {[%emt 00:00:15]} Qf1+ {[%clk 00:03:23]} {[%emt
00:00:03]} 58. Kg4 {[%clk 00:03:08]} {[%emt 00:00:41]} Qd1+ {[%clk 00:03:46]}
{[%emt 00:00:07]} 1/2-1/2

[Event "Tournoi norme de MI"]
[Site "PARIS"]
[Date "????.??.??"]
[Round "2.4"]
[White "Laurent, Julien G."]
[Black "Bonte, Andrei-Mihai"]
[Result "0-1"]
[TimeControl "90mn+30s/c"]
[WhiteElo "2199"]
[BlackElo "2340"]

1. d4 {[%clk 01:30:55]} {[%emt 00:00:04]} Nf6 {[%clk 01:24:19]} {[%emt
00:06:41]} 2. c4 {[%clk 01:31:16]} {[%emt 00:00:10]} e6 {[%clk 01:24:44]}
{[%emt 00:00:05]} 3. Nc3 {[%clk 01:31:43]} {[%emt 00:00:03]} Bb4 {[%clk
01:25:08]} {[%emt 00:00:06]} 4. e3 {[%clk 01:31:56]} {[%emt 00:00:17]} d5
{[%clk 01:25:29]} {[%emt 00:00:09]} 5. Bd3 {[%clk 01:31:53]} {[%emt 00:00:32]}
O-O {[%clk 01:25:08]} {[%emt 00:00:51]} 6. a3 {[%clk 01:32:18]} {[%emt
00:00:06]} dxc4 {[%clk 01:22:48]} {[%emt 00:02:50]} 7. Bxc4 {[%clk 01:32:07]}
{[%emt 00:00:41]} Bd6 {[%clk 01:23:12]} {[%emt 00:00:06]} 8. Nf3 {[%clk
01:31:54]} {[%emt 00:00:42]} Nc6 {[%clk 01:23:28]} {[%emt 00:00:16]} 9. b4
{[%clk 01:24:58]} {[%emt 00:07:25]} a6 {[%clk 01:22:00]} {[%emt 00:01:58]} 10.
Bb2 {[%clk 01:23:05]} {[%emt 00:02:23]} e5 {[%clk 01:14:33]} {[%emt 00:07:58]}
11. d5 {[%clk 01:12:21]} {[%emt 00:11:14]} Ne7 {[%clk 01:14:44]} {[%emt
00:00:18]} 12. Nd2 {[%clk 01:12:24]} {[%emt 00:00:27]} b5 {[%clk 01:11:04]}
{[%emt 00:04:10]} 13. Ba2 {[%clk 01:10:01]} {[%emt 00:02:55]} Bb7 {[%clk
01:10:48]} {[%emt 00:00:44]} 14. e4 {[%clk 01:09:03]} {[%emt 00:01:27]} c5
{[%clk 00:54:16]} {[%emt 00:17:02]} 15. bxc5 {[%clk 01:07:07]} {[%emt
00:02:27]} Bxc5 {[%clk 00:54:11]} {[%emt 00:00:37]} 16. O-O {[%clk 01:07:32]}
{[%emt 00:00:02]} Ng6 {[%clk 00:51:36]} {[%emt 00:03:06]} 17. Nb3 {[%clk
00:59:10]} {[%emt 00:08:52]} Bb6 {[%clk 00:50:19]} {[%emt 00:01:48]} 18. Bb1
{[%clk 00:59:27]} {[%emt 00:00:12]} Rc8 {[%clk 00:41:58]} {[%emt 00:08:52]} 19.
Bd3 {[%clk 00:58:22]} {[%emt 00:01:35]} Ne8 {[%clk 00:40:59]} {[%emt 00:01:29]}
20. Ne2 {[%clk 00:57:09]} {[%emt 00:01:43]} Nd6 {[%clk 00:39:24]} {[%emt
00:02:04]} 21. a4 {[%clk 00:56:57]} {[%emt 00:00:43]} f5 {[%clk 00:30:02]}
{[%emt 00:09:51]} 22. exf5 {[%clk 00:49:21]} {[%emt 00:08:07]} Nxf5 {[%clk
00:27:42]} {[%emt 00:02:49]} 23. Be4 {[%clk 00:47:56]} {[%emt 00:01:55]} Rc4
{[%clk 00:25:56]} {[%emt 00:02:16]} 24. Qd3 {[%clk 00:48:03]} {[%emt 00:00:23]}
Rxe4 {[%clk 00:18:33]} {[%emt 00:07:53]} 25. Qxe4 {[%clk 00:48:23]} {[%emt
00:00:11]} Bxd5 {[%clk 00:18:20]} {[%emt 00:00:43]} 26. Qb4 {[%clk 00:47:48]}
{[%emt 00:01:05]} Qg5 {[%clk 00:11:47]} {[%emt 00:07:03]} 27. g3 {[%clk
00:47:37]} {[%emt 00:00:41]} Nxg3 {[%clk 00:10:17]} {[%emt 00:01:59]} 28. Nxg3
{[%clk 00:47:22]} {[%emt 00:00:46]} Nf4 {[%clk 00:10:22]} {[%emt 00:00:26]} 29.
h3 {[%clk 00:46:15]} {[%emt 00:01:37]} 0-1